[Event "24th Hoogeschool Zeeland 2022"]
[Site "Vlissingen"]
[Date "2022.08.07"]
[Round "2.3"]
[White "Baklan, Vladimir"]
[Black "Manshanden, Nick"]
[Result "1-0"]
[ECO "C65"]
[WhiteElo "2589"]
[BlackElo "2065"]
[Annotator "TA"]
[PlyCount "95"]
[EventDate "2022.08.05"]
[EventType "swiss"]
[EventCountry "NED"]
[SourceTitle "playchess.com"]
[Source "ChessBase"]
[SourceQuality "1"]
[TimeControl "40/5400+30:1800+30"]

{[%evp 9,95,22,30,12,23,25,23,0,0,0,0,-14,5,-18,7,-3,25,25,46,-8,-15,-25,-16,-15,-12,-30,0,0,12,0,0,0,0,0,0,0,0,0,22,22,27,0,12,0,0,0,0,0,0,0,0,0,0,0,0,0,9,0,0,6,62,75,512,90,268,248,327,326,551,550,531,492,447,312,1007,972,830,862,1439,1501,1264,1118,1917,2025,29988,29989,29988,29989]} 1. e4 {[%emt 0:00:03]} e5 {[%emt 0:00:34]} 2. Nf3 {[%emt 0:00:05]} Nc6 {[%emt 0:00:04]} 3. Bb5 {[%emt 0:00:06]} Nf6 {[%emt 0:00:05]} 4. d3 {[%emt 0:04:30]} Bc5 {[%emt 0:00:06]} 5. Bxc6 {[%emt 0:00:19]} dxc6 {[%emt 0:00:12]} 6. Nbd2 {[%emt 0:03:16] C65: Ruy Lopez: Berlin Defence (3...Nf6), unusual lines and 4 0-0 Bc5.} Be6 {[%emt 0:05:04]} 7. O-O {[%emt 0:02:24]} Nd7 {[%emt 0:01:05] 7...Bd6 is more fashionable.} 8. b3 {[%emt 0:00:06] White has an edge.} O-O {[%emt 0:14:58]} 9. Bb2 {[%emt 0:00:37]} f6 {[%emt 0:03:39] [#]} 10. Kh1 $146 {[%emt 0:01:14]} ({Predecessor:} 10. d4 Bd6 11. Qe2 Bg4 12. Rfe1 exd4 13. Bxd4 Qe7 14. h3 Bh5 15. Qe3 Rfe8 16. Nh4 {½-½ (57) Quesada Perez,Y (2622)-Bok,B (2639) Saint Louis 2018}) 10... Qe8 {[%emt 0:04:17]} 11. Nh4 {[%emt 0:01:27]} Rd8 {[%emt 0:04:12]} 12. Qf3 {[%emt 0:08:59]} g6 {[%emt 0:08:33]} 13. Qg3 {[%emt 0:03:52]} Bd6 {[%emt 0:07:17]} 14. Nc4 {[%emt 0:01:50]} (14. Nf5 $14) 14... Bxc4 $11 {[%emt 0:02:47]} 15. bxc4 {[%emt 0:00:05]} Nc5 {[%emt 0:03:20]} 16. Nf5 {[%emt 0:01:28][%cal Of2f4]} Ne6 {[%emt 0:01:00] Against f4} 17. Bc1 {[%emt 0:00:33]} Kh8 {[%emt 0:04:12]} 18. Nxd6 {[%emt 0:07:02]} Rxd6 {[%emt 0:07:29]} 19. f4 {[%emt 0:03:34]} exf4 {[%emt 0:01:45]} 20. Bxf4 {[%emt 0:00:26]} Nxf4 {[%emt 0:01:32]} 21. Qxf4 {[%emt 0:00:03]} Kg7 {[%emt 0:02:24]} 22. a4 {[%emt 0:04:56]} c5 {[%emt 0:04:36]} 23. a5 {[%emt 0:04:16]} Qc6 {[%emt 0:02:34]} 24. Rf3 {[%emt 0:14:29]} Re6 {[%emt 0:03:07]} 25. Rb1 {[%emt 0:02:33]} Rf7 {[%emt 0:01:11]} 26. g4 {[%emt 0:01:08]} b6 {[%emt 0:05:11]} 27. Ra1 {[%emt 0:02:33]} b5 {[%emt 0:02:49]} 28. cxb5 {[%emt 0:05:14]} Qxb5 {[%emt 0:00:04]} 29. c4 {[%emt 0:00:05]} Qb2 {[%emt 0:02:41]} 30. Raf1 {[%emt 0:00:25]} Qc3 {[%emt 0:01:48]} 31. g5 {[%emt 0:01:39]} Qxa5 {[%emt 0:02:20]} 32. Qc1 {[%emt 0:06:54]} Rb6 {[%emt 0:02:11]} 33. Kg2 {[%emt 0:02:15]} Qb4 {[%emt 0:01:37]} 34. R1f2 {[%emt 0:01:03] aiming for Qa1.} Ra6 {[%emt 0:00:56] Against Qa1} ({Black should try} 34... Re6 $11) 35. h4 $14 {[%emt 0:02:49][%cal Oh4h5][%mdl 1024] Strongly threatening h5! White has compensation.} Qb3 $2 {[%emt 0:00:53][%mdl 8192]} (35... h5 $16) 36. d4 $2 {[%emt 0:02:32]} (36. h5 $1 $18 {is the precise move to win.}) 36... Qb7 $2 {[%emt 0:00:35] [#]} (36... Qa4 $16) 37. d5 $1 $18 {[%emt 0:00:24]} Qc8 {[%emt 0:00:59] [#] Threatens to win with ...Qg4+.} 38. Qf4 {[%emt 0:01:52] Prevents Qg4+.} Qe8 $2 {[%emt 0:00:26]} (38... f5 {was necessary.} 39. Qe5+ (39. exf5 Rxf5 40. Qg4 Kg8 $14) 39... Kg8 40. exf5 gxf5 41. Rxf5 Rxf5 42. Rxf5 Rb6) 39. e5 {[%emt 0:00:41][%cal Be4e5,Be5e6][%mdl 32]} f5 {[%emt 0:00:18]} 40. e6 {[%emt 0:00:09]} Re7 {[%emt 0:00:16]} 41. Qe3 {[%emt 0:30:30]} c6 $2 {[%emt 0:05:10]} (41... Kg8 42. Qxc5 Qf8) 42. Qe5+ {[%emt 0:00:00]} Kg8 {[%emt 0:00:51]} 43. Rb2 {[%emt 0:00:00] White threatens Rb8 and mate.} Rb6 {[%emt 0:01:12] Inhibits Rb8.} 44. Rxb6 {[%emt 0:00:00]} axb6 {[%emt 0:00:31]} 45. Ra3 {[%emt 0:00:00]} b5 {[%emt 0:05:07]} 46. Qa1 {[%emt 0:00:00] Threatening mate with Ra8.} Rb7 {[%emt 0:02:30]} 47. Ra8 {[%emt 0:00:00][%cal Ra8e8]} Rb8 {[%emt 0:00:14]} 48. Ra7 {[%emt 0:00:00] Weighted Error Value: White=0.37/Black=0.60} 1-0

[Event "24th Hoogeschool Zeeland 2022"]
[Site "Vlissingen"]
[Date "2022.08.07"]
[Round "2.4"]
[White "Coenen, Eduard"]
[Black "Harsha Bharathakoti"]
[Result "0-1"]
[ECO "D02"]
[WhiteElo "2063"]
[BlackElo "2547"]
[Annotator "TA"]
[PlyCount "56"]
[EventDate "2022.08.05"]
[EventType "swiss"]
[EventCountry "NED"]
[SourceTitle "playchess.com"]
[Source "ChessBase"]
[SourceQuality "1"]
[TimeControl "40/5400+30:1800+30"]

{[%evp 9,56,0,6,6,5,0,23,9,6,0,-19,-25,-24,-27,-24,-25,-38,-22,-30,-62,-64,-69,-64,-74,-76,-120,-120,-98,-100,-100,-100,-100,-54,-125,-120,-104,-70,-204,-207,-468,-453,-433,-416,-959,-919,-29990,-29991,-29991,-29991]} 1. d4 {[%emt 0:00:12]} d5 {[%emt 0:02:23]} 2. Nf3 {[%emt 0:00:23]} Nf6 {[%emt 0:00:09]} 3. c3 {[%emt 0:01:06]} c5 {[%emt 0:00:38]} 4. g3 {[%emt 0:01:59]} e6 {[%emt 0:02:58]} 5. Bg2 {[%emt 0:02:18]} Nbd7 {[%emt 0:04:38]} 6. O-O {[%emt 0:02:13][%cal Oc3c4] D02: 1 d4 d5 2 Nf3 sidelines, including 2...Nf6 3 g3 and 2...Nf6 3 Bf4.} b5 {[%emt 0:04:00]} 7. Bf4 {[%emt 0:04:45]} Be7 {[%emt 0:06:02]} 8. Ne5 {[%emt 0:01:11] White has an edge.} Bb7 {[%emt 0:01:06] Inhibits Nc6.} 9. Nd2 {[%emt 0:03:15]} O-O {[%emt 0:07:45] [#]} 10. Rc1 $146 {[%emt 0:04:38]} ({Predecessor:} 10. Nd3 Qb6 11. dxc5 Nxc5 12. Nxc5 Qxc5 13. a4 b4 14. c4 Rfd8 15. Rc1 Qb6 16. Qb3 {1-0 (72) Bartholomew,J (2446)-Kashlinskaya,A (2494) Chess.com INT 2020}) 10... Nxe5 {[%emt 0:07:36]} 11. Bxe5 {[%emt 0:04:39]} Ng4 {[%emt 0:09:45]} 12. e4 {[%emt 0:08:25]} Nxe5 {[%emt 0:00:18]} 13. dxe5 {[%emt 0:00:08]} Qb6 {[%emt 0:07:07]} 14. f4 {[%emt 0:06:16]} Rad8 {[%emt 0:02:20] White must now prevent ...dxe4.} 15. exd5 {[%emt 0:05:15]} Bxd5 {[%emt 0:09:58]} 16. c4 {[%emt 0:08:56]} bxc4 {[%emt 0:11:54]} 17. Qc2 {[%emt 0:02:28]} c3 $1 {[%emt 0:00:04]} 18. bxc3 {[%emt 0:01:38] [#]} c4+ $1 {[%emt 0:00:05]} 19. Kh1 {[%emt 0:00:21] [#]} Bxg2+ $1 {[%emt 0:00:23]} 20. Kxg2 {[%emt 0:00:06]} Rd3 {[%emt 0:00:14]} ({Black should try} 20... Qc6+ $17 21. Ne4 f5 22. exf6 gxf6) 21. Kh3 {[%emt 0:02:08]} ({Better is} 21. Rce1 $15) 21... Qc6 $36 {[%emt 0:03:01][%mdl 2048] Keeping White busy. 0x0.00198aec214fdp-1022s more active pieces.} 22. Rce1 {[%emt 0:07:48]} Rfd8 {[%emt 0:00:03]} 23. Re2 {[%emt 0:02:43] This move loses the game for White.} (23. Ne4 $15) 23... R8d5 $19 {[%emt 0:06:56] Hoping for ...f5.} 24. Ne4 $2 {[%emt 0:02:39]} (24. Nf3 {is the only way for White.}) 24... f5 {[%emt 0:00:35]} 25. exf6 {[%emt 0:07:45]} gxf6 {[%emt 0:00:02][%cal Bg7f6,Bf6g5][%mdl 32] aiming for ...Rh5+.} 26. f5 {[%emt 0:02:50]} (26. Ree1 $142 Rh5+ 27. Kg2) 26... exf5 {[%emt 0:02:20]} 27. Ng5 {[%emt 0:06:30]} fxg5 {[%emt 0:00:17]} 28. Kg2 {[%emt 0:05:59]} Rd2 {[%emt 0:11:53] Weighted Error Value: White=0.75/Black=0.04 (flawless)} 0-1

[Event "24th Hoogeschool Zeeland 2022"]
[Site "Vlissingen"]
[Date "2022.08.07"]
[Round "2.5"]
[White "Lalith Babu M R"]
[Black "Hari Charan Sai Kalluri"]
[Result "1-0"]
[ECO "E04"]
[WhiteElo "2549"]
[BlackElo "2041"]
[Annotator "TA"]
[PlyCount "43"]
[EventDate "2022.08.05"]
[EventType "swiss"]
[EventCountry "NED"]
[SourceTitle "playchess.com"]
[Source "ChessBase"]
[SourceQuality "1"]
[TimeControl "40/5400+30:1800+30"]

{[%evp 11,43,0,0,-9,0,0,0,0,1,13,18,-10,18,20,20,0,96,79,177,170,163,182,158,168,315,309,355,286,519,539,658,713,762,715]} 1. d4 {[%emt 0:04:20]} d5 {[%emt 0:00:43]} 2. Nf3 {[%emt 0:00:02]} Nf6 {[%emt 0:00:29]} 3. c4 {[%emt 0:00:05]} c6 {[%emt 0:00:12]} 4. Nc3 {[%emt 0:00:05]} dxc4 {[%emt 0:00:56]} 5. g3 {[%emt 0:02:40]} b5 {[%emt 0:04:37]} 6. Bg2 {[%emt 0:00:05]} e6 {[%emt 0:01:14] is the legacy move (6...Bb7).} 7. O-O {[%emt 0:00:50] E04: Open Catalan: 5 Nf3.} Be7 {[%emt 0:02:17]} 8. Ne5 {[%emt 0:01:09]} Nd5 {[%emt 0:05:32]} 9. a4 {[%emt 0:08:16] The position is equal.} b4 {[%emt 0:24:46]} 10. Ne4 {[%emt 0:00:20][%cal Bc3e4,Be4d2,Bd2b3][%mdl 32]} Ba6 {[%emt 0:01:46] [#]} 11. Nd2 $146 {[%emt 0:00:17][%mdl 1024] White has compensation.} ({Predecessor:} 11. Nc5 Bxc5 12. dxc5 c3 13. bxc3 f6 14. e4 Bxf1 15. Qh5+ g6 16. Nxg6 hxg6 17. Qxh8+ {½-½ (31) Trivedi,K (2122)-Lloyd,G (2263) ICCF email 2015}) 11... c3 {[%emt 0:05:04]} 12. Nb3 {[%emt 0:00:06]} O-O {[%emt 0:06:30]} 13. Qc2 {[%emt 0:00:22]} f5 {[%emt 0:05:25]} (13... c5 $11 14. bxc3 (14. Nxc5 Bxc5 15. dxc5 Qc7 $11) (14. dxc5 Qc7 $11) 14... bxc3) 14. Re1 {[%emt 0:00:15]} Nd7 {[%emt 0:17:23]} (14... cxb2 $16 15. Bxb2 f4) 15. Nxc6 $18 {[%emt 0:00:57]} Qe8 {[%emt 0:00:03] [#]} 16. e4 $1 {[%emt 0:00:43]} fxe4 {[%emt 0:02:15]} 17. Qxe4 {[%emt 0:00:24]} Nc7 {[%emt 0:01:16]} (17... Rf6 $2 18. Nxe7+ Qxe7 {[#]} 19. Qxd5 $3 $18 {[%mdl 512]}) (17... Bf6 $142 18. Qxe6+ Qxe6 19. Rxe6 N5b6) 18. bxc3 {[%emt 0:03:38]} bxc3 {[%emt 0:00:38]} 19. Bf4 {[%emt 0:08:25] Inhibits Bd6.} Bd8 {[%emt 0:02:21]} (19... Bc4 20. Qc2 Rxf4) 20. Nxd8 {[%emt 0:00:15] White is clearly winning.} Qxd8 {[%emt 0:00:01]} 21. Bxc7 {[%emt 0:00:09]} Qxc7 {[%emt 0:00:03]} 22. Qxe6+ {[%emt 0:00:05] Weighted Error Value: White=0.10 (very precise) /Black=0.54} 1-0

[Event "24th Hoogeschool Zeeland 2022"]
[Site "Vlissingen"]
[Date "2022.08.07"]
[Round "2.7"]
[White "Schoppen, Casper"]
[Black "Le Clercq, Maxim"]
[Result "1-0"]
[ECO "B12"]
[WhiteElo "2507"]
[BlackElo "2049"]
[Annotator "TA"]
[PlyCount "55"]
[EventDate "2022.08.05"]
[EventType "swiss"]
[EventCountry "NED"]
[SourceTitle "playchess.com"]
[Source "ChessBase"]
[SourceQuality "1"]
[TimeControl "40/5400+30:1800+30"]

{[%evp 9,54,22,29,14,24,16,25,19,25,16,18,15,20,35,35,28,83,85,90,84,217,230,192,174,259,269,295,289,343,331,379,344,861,860,780,681,1064,1062,1039,1017,29982,29983,29993,29994,29998,29999,29999]} 1. e4 {[%emt 0:04:20]} c6 {[%emt 0:00:20]} 2. d4 {[%emt 0:00:11]} d5 {[%emt 0:00:11]} 3. e5 {[%emt 0:00:10]} c5 {[%emt 0:00:20]} 4. Nf3 {[%emt 0:00:09]} cxd4 {[%emt 0:07:40]} 5. Nxd4 {[%emt 0:00:29]} e6 {[%emt 0:00:42]} 6. Nd2 {[%emt 0:07:02][%cal Bb1d2,Bd2f3,Bf3d4][%mdl 32] B12: Caro-Kann: Advance Variation.} Ne7 {[%emt 0:05:07][%cal Bg8e7,Be7g6,Bg6f8][%mdl 32]} 7. N2f3 {[%emt 0:00:59]} Nbc6 {[%emt 0:04:11]} 8. Bd3 {[%emt 0:06:26] White has an edge.} Ng6 {[%emt 0:05:41]} 9. Nxc6 {[%emt 0:07:54]} bxc6 {[%emt 0:00:02]} 10. h4 {[%emt 0:00:15][%cal Bh2h4,Bh4h5][%mdl 32] [#]} Be7 $146 {[%emt 0:09:23]} ({Predecessor:} 10... Qc7 11. Qe2 c5 12. h5 Ne7 13. c4 h6 14. Bd2 Rb8 15. b3 dxc4 16. Bxc4 Bb7 {0-1 (42) Msellek,I (2411)-Gunina,V (2471) Sharjah 2022}) 11. h5 {[%emt 0:01:34]} Nf8 {[%emt 0:02:24]} 12. Nd4 {[%emt 0:07:08] Threatens to win with Qg4.} Bd7 {[%emt 0:07:12]} (12... Qb6 $11 {remains equal.} 13. Qg4 g5) 13. Qg4 $36 {[%emt 0:00:39][%mdl 2048] Keeping Black busy.} Rg8 {[%emt 0:00:53]} 14. Nf3 {[%emt 0:05:29]} f5 {[%emt 0:06:44] This move loses the game for Black.} (14... c5 $16) 15. exf6 $1 $18 {[%emt 0:02:03]} Bxf6 {[%emt 0:00:05] [#]} 16. Qg3 {[%emt 0:01:14] Prevents e5.} Qb8 {[%emt 0:03:18] [#]} (16... c5 {is a better defense.}) 17. Bf4 $1 {[%emt 0:01:32]} Qb4+ {[%emt 0:04:50]} (17... Qxb2 $2 18. O-O $18) 18. c3 {[%emt 0:02:04]} Qxb2 {[%emt 0:07:35]} 19. O-O {[%emt 0:01:25] Active counter play!} Qxc3 {[%emt 0:00:47]} 20. Ne5 {[%emt 0:02:42]} Ke7 $2 {[%emt 0:05:43]} (20... Qb4 21. Rab1 Qe7) 21. Rac1 {[%emt 0:03:03][%mdl 64] Skewer} Qa5 {[%emt 0:03:13]} 22. Ng4 {[%emt 0:04:17]} d4 {[%emt 0:03:43]} 23. Nxf6 {[%emt 0:05:52]} Kxf6 {[%emt 0:07:43]} 24. Bd6 {[%emt 0:00:17] Rc5 would kill now. This bishop pair is nice.} g5 {[%emt 0:03:40]} 25. Rc5 {[%emt 0:07:40] White mates.} Qd2 {[%emt 0:03:34] [#]} 26. Rf5+ $3 {[%emt 0:00:14][%mdl 512]} exf5 {[%emt 0:03:13]} (26... Kg7 27. Rxg5+) 27. Qe5+ {[%emt 0:00:05]} Kf7 {[%emt 0:00:06]} 28. Qe7# {[%emt 0:29:17] Weighted Error Value: White=0.05 (flawless) /Black=0.67} 1-0

[Event "24th Hoogeschool Zeeland 2022"]
[Site "Vlissingen"]
[Date "2022.08.07"]
[Round "2.8"]
[White "Shakhverdian, William"]
[Black "Ikonnikov, Vyacheslav"]
[Result "0-1"]
[ECO "E00"]
[WhiteElo "2040"]
[BlackElo "2493"]
[Annotator "RC"]
[PlyCount "52"]
[EventDate "2022.08.05"]
[EventType "swiss"]
[EventCountry "NED"]
[SourceTitle "playchess.com"]
[Source "ChessBase"]
[SourceQuality "1"]
[TimeControl "40/5400+30:1800+30"]

1. d4 {[%emt 0:00:02]} Nf6 {[%emt 0:00:14]} 2. c4 {[%emt 0:00:13]} e6 {[%emt 0:00:18]} 3. g3 {[%emt 0:00:41]} Bb4+ {[%emt 0:00:43]} 4. Bd2 {[%emt 0:00:37]} a5 {[%emt 0:00:13]} 5. Bg2 {[%emt 0:01:11]} d6 {[%emt 0:00:18]} 6. Nc3 {[%emt 0:05:33]} Nbd7 {[%emt 0:01:23]} 7. e3 {[%emt 0:05:42]} c6 {[%emt 0:13:37]} 8. Nge2 {[%emt 0:13:50]} d5 {[%emt 0:01:00]} 9. b3 {[%emt 0:07:55]} O-O {[%emt 0:04:21]} 10. O-O {[%emt 0:02:56]} Re8 {[%emt 0:00:38]} 11. a3 {[%emt 0:11:43]} Bf8 {[%emt 0:02:21]} 12. e4 {[%emt 0:03:19]} dxe4 {[%emt 0:02:27]} 13. Nxe4 {[%emt 0:00:17]} Nxe4 {[%emt 0:00:06]} 14. Bxe4 {[%emt 0:00:10]} e5 {[%emt 0:00:16]} 15. Re1 {[%emt 0:19:40]} exd4 {[%emt 0:19:24]} 16. Nxd4 {[%emt 0:04:59]} Rxe4 {[%emt 0:06:04]} 17. Rxe4 {[%emt 0:00:07]} Nc5 {[%emt 0:00:05]} 18. Rf4 {[%emt 0:11:11]} g5 {[%emt 0:16:23]} 19. Rg4 {[%emt 0:02:11]} h6 {[%emt 0:00:42]} 20. Qf3 {[%emt 0:03:52]} Bg7 {[%emt 0:05:45]} 21. Be3 {[%emt 0:00:41]} Qf6 {[%emt 0:04:25]} 22. Qe2 {[%emt 0:02:08]} Qg6 {[%emt 0:01:33]} 23. Rd1 {[%emt 0:02:20]} f5 {[%emt 0:00:47]} 24. b4 {[%emt 0:00:35]} axb4 {[%emt 0:01:41]} 25. axb4 {[%emt 0:00:01]} Nd7 {[%emt 0:00:19]} 26. Qc2 {[%emt 0:01:04]} Ne5 {[%emt 0:18:27]} 0-1

[Event "24th Hoogeschool Zeeland 2022"]
[Site "Vlissingen"]
[Date "2022.08.07"]
[Round "2.9"]
[White "Santiago, Yago De Moura"]
[Black "Warnaar, Alisha"]
[Result "1-0"]
[ECO "D03"]
[WhiteElo "2513"]
[BlackElo "2037"]
[Annotator "TA"]
[PlyCount "67"]
[EventDate "2022.08.05"]
[EventType "swiss"]
[EventCountry "NED"]
[SourceTitle "playchess.com"]
[Source "ChessBase"]
[SourceQuality "1"]
[TimeControl "40/5400+30:1800+30"]

{[%evp 12,67,10,1,1,0,0,0,12,0,20,13,11,18,16,14,6,0,52,39,43,20,55,57,53,53,105,64,78,74,62,0,55,51,77,69,77,76,68,73,75,75,106,75,189,204,205,203,202,181,227,224,252,240,283,270,261,239]} 1. d4 {[%emt 0:01:14]} Nf6 {[%emt 0:02:40]} 2. Nf3 {[%emt 0:01:14]} g6 {[%emt 0:00:27]} 3. Bg5 {[%emt 0:00:41]} Bg7 {[%emt 0:00:24]} 4. Nbd2 {[%emt 0:00:17]} O-O {[%emt 0:01:02]} 5. c3 {[%emt 0:00:24]} d5 {[%emt 0:02:51]} 6. e3 {[%emt 0:00:28]} b6 {[%emt 0:01:10]} 7. a4 {[%emt 0:02:12]} c5 {[%emt 0:04:44] D03: 1 d4 d5 2 Nf3 Nf6 3 Bg5, including Torre Attack with early ...d5.} 8. Be2 {[%emt 0:06:36]} Nc6 {[%emt 0:06:06]} 9. O-O {[%emt 0:00:52]} Bf5 {[%emt 0:01:52] [#] The position is equal.} 10. Re1 $146 {[%emt 0:05:36]} ({Predecessor:} 10. h3 Re8 11. Bb5 Bd7 12. Qe2 h6 13. Bf4 Ne4 14. Nxe4 dxe4 15. Nd2 e5 16. dxe5 Nxe5 17. Nxe4 Bxb5 18. axb5 {1-0 (34) Nilsson,J (2215)-Yakimova,M (2269) Chess.com INT 2020}) 10... a6 {[%emt 0:08:59]} 11. Bf1 {[%emt 0:02:39]} Qd7 {[%emt 0:02:25]} 12. Bxf6 {[%emt 0:16:42]} Bxf6 {[%emt 0:00:53]} 13. dxc5 {[%emt 0:00:16]} bxc5 {[%emt 0:00:59]} 14. e4 {[%emt 0:00:12]} Bg4 {[%emt 0:17:40]} (14... Be6 $11) 15. exd5 $14 {[%emt 0:12:51]} Qxd5 {[%emt 0:00:30]} 16. Nc4 {[%emt 0:09:47] Prevents Ne5.} Rad8 {[%emt 0:16:05]} 17. Qxd5 {[%emt 0:07:09]} Rxd5 {[%emt 0:00:55]} 18. Nfd2 {[%emt 0:00:37]} Bg7 {[%emt 0:08:38]} (18... Bf5 $14) 19. Ne4 {[%emt 0:08:56] [#] Strongly threatening Ne3. Pair of Knights!} Bf5 {[%emt 0:03:18]} 20. Ng3 {[%emt 0:02:10]} Be6 {[%emt 0:01:20]} 21. Ne4 {[%emt 0:06:30]} (21. Ne3 $5 {[%cal Re3d5]} Rd2 22. Bxa6 $11) 21... Bf5 {[%emt 0:02:13]} 22. f4 {[%emt 0:10:18]} e5 {[%emt 0:08:49]} 23. Nb6 {[%emt 0:01:10] White is more active.} Bxe4 {[%emt 0:00:31]} 24. Rxe4 {[%emt 0:00:07]} Rd6 {[%emt 0:00:19]} 25. Nc4 {[%emt 0:01:08] Against Na5} (25. Bxa6 $2 Na5 26. fxe5 Rxb6 $17) 25... Re6 {[%emt 0:01:44]} 26. Rd1 {[%emt 0:01:06][%cal Ba1d1,Bd1d5,Bd5c5,Bc5a5,Ba5a6,Ba6e6][%mdl 32]} Rb8 {[%emt 0:01:19]} 27. Rd5 $36 {[%emt 0:01:11][%mdl 2048] White is in control.} exf4 {[%emt 0:01:01] [#]} (27... Rd8 $16 {was worth a try.} 28. Rxd8+ (28. Rxc5 Bf8 $17) 28... Nxd8) 28. Rxe6 $1 $18 {[%emt 0:00:18]} fxe6 {[%emt 0:00:05]} 29. Rxc5 {[%emt 0:01:02]} Ne7 {[%emt 0:01:05]} 30. Ra5 {[%emt 0:00:55]} Nd5 {[%emt 0:04:52]} (30... Ra8 {was necessary.} 31. Nb6 Rd8 32. Rxa6 Bf8) 31. Rxa6 {[%emt 0:00:37]} Ne3 {[%emt 0:00:23]} 32. Rxe6 {[%emt 0:00:43]} Kf8 {[%emt 0:00:39]} 33. Nxe3 {[%emt 0:00:30]} fxe3 {[%emt 0:00:05]} 34. Bb5 {[%emt 0:00:13] Weighted Error Value: White=0.07 (flawless) /Black=0.20 (precise)} ({Don't take} 34. Rxe3 $6 Rxb2 35. a5 Rb3 $16) 1-0